[Event "*** SCC Grand Prix: Titled Tuesday Blitz"]
[Site "Chess.com"]
[Date "2020.06.02"]
[Round "3"]
[White "DraG0s3L"]
[Black "Gabrielian_Artur"]
[Result "0-1"]
[WhiteElo "2513"]
[BlackElo "2739"]
[TimeControl "180+1"]
[EndTime "10:28:53 PDT"]
[Termination "Gabrielian_Artur won by resignation"]

1. Nf3 {[%clk 0:03:00.9]} 1... Nf6 {[%clk 0:02:59.5]} 2. b3 {[%clk 0:03:01.5]}
2... g6 {[%clk 0:02:59.1]} 3. Bb2 {[%clk 0:03:02.2]} 3... Bg7 {[%clk 0:02:59]}
4. e3 {[%clk 0:03:02.8]} 4... O-O {[%clk 0:02:58.6]} 5. d4 {[%clk 0:03:03.4]}
5... d6 {[%clk 0:02:58.8]} 6. Be2 {[%clk 0:03:03.5]} 6... Nbd7 {[%clk
0:02:58.5]} 7. O-O {[%clk 0:03:03.6]} 7... Re8 {[%clk 0:02:56.2]} 8. c4 {[%clk
0:02:52.1]} 8... e5 {[%clk 0:02:55.8]} 9. dxe5 {[%clk 0:02:51.6]} 9... Ng4
{[%clk 0:02:56.1]} 10. Nc3 {[%clk 0:02:51.6]} 10... dxe5 {[%clk 0:02:56.3]} 11.
h3 {[%clk 0:02:45.6]} 11... Nh6 {[%clk 0:02:55.6]} 12. Qc2 {[%clk 0:02:35.5]}
12... f5 {[%clk 0:02:51.5]} 13. Rad1 {[%clk 0:02:28.7]} 13... c6 {[%clk
0:02:48.4]} 14. Ba3 {[%clk 0:02:21]} 14... e4 {[%clk 0:02:34.2]} 15. Nd4 {[%clk
0:02:19]} 15... Nf7 {[%clk 0:02:33.6]} 16. Na4 {[%clk 0:02:07.8]} 16... Qc7
{[%clk 0:02:14.9]} 17. c5 {[%clk 0:01:52.9]} 17... Nde5 {[%clk 0:02:11.8]} 18.
b4 {[%clk 0:01:50.2]} 18... Qe7 {[%clk 0:01:38.9]} 19. b5 {[%clk 0:01:45.7]}
19... Qh4 {[%clk 0:01:38.5]} 20. Nb2 {[%clk 0:01:30]} 20... Ng5 {[%clk
0:01:26.7]} 21. Nc4 {[%clk 0:01:23.3]} 21... Nef3+ {[%clk 0:01:17.7]} 22. Bxf3
{[%clk 0:00:55.6]} 22... exf3 {[%clk 0:01:11.5]} 23. Nxf3 {[%clk 0:00:46.2]}
23... Nxf3+ {[%clk 0:01:10.4]} 24. gxf3 {[%clk 0:00:47.1]} 24... Qxh3 {[%clk
0:01:02.4]} 25. Nd6 {[%clk 0:00:45.3]} 25... Be6 {[%clk 0:01:02.4]} 26. Nxe8
{[%clk 0:00:27]} 26... Rxe8 {[%clk 0:01:03.3]} 27. Qe2 {[%clk 0:00:27.2]} 27...
Bd5 {[%clk 0:00:20.9]} 28. Rxd5 {[%clk 0:00:26.5]} 28... cxd5 {[%clk 0:00:21.2]}
29. f4 {[%clk 0:00:17.3]} 29... d4 {[%clk 0:00:17.8]} 30. Bc1 {[%clk 0:00:05.9]}
30... dxe3 {[%clk 0:00:16.7]} 31. Bxe3 {[%clk 0:00:05.7]} 31... Bf6 {[%clk
0:00:15.1]} 32. Rd1 {[%clk 0:00:04.1]} 32... Kg7 {[%clk 0:00:11.8]} 33. Qf1
{[%clk 0:00:04.2]} 33... Qg4+ {[%clk 0:00:11.2]} 34. Qg2 {[%clk 0:00:04.6]}
34... Qxd1+ {[%clk 0:00:10.8]} 35. Kh2 {[%clk 0:00:05.3]} 0-1

[Event "*** SCC Grand Prix: Titled Tuesday Blitz"]
[Site "Chess.com"]
[Date "2020.06.02"]
[Round "3"]
[White "Borsuk_Konstantin"]
[Black "WelshTiger"]
[Result "1-0"]
[WhiteElo "2563"]
[BlackElo "2361"]
[TimeControl "180+1"]
[EndTime "10:28:53 PDT"]
[Termination "Borsuk_Konstantin won by resignation"]

1. d4 {[%clk 0:03:00.9]} 1... Nf6 {[%clk 0:02:49.2]} 2. c4 {[%clk 0:03:01.3]}
2... c5 {[%clk 0:02:48.7]} 3. d5 {[%clk 0:03:01]} 3... e6 {[%clk 0:02:48.6]} 4.
Nc3 {[%clk 0:03:00.4]} 4... exd5 {[%clk 0:02:48.8]} 5. cxd5 {[%clk 0:03:01.3]}
5... d6 {[%clk 0:02:49.3]} 6. Nf3 {[%clk 0:03:01.2]} 6... g6 {[%clk 0:02:49.8]}
7. g3 {[%clk 0:03:01.4]} 7... Bg7 {[%clk 0:02:49.3]} 8. Bg2 {[%clk 0:03:01.9]}
8... O-O {[%clk 0:02:50]} 9. O-O {[%clk 0:03:02.2]} 9... Re8 {[%clk 0:02:50.4]}
10. Nd2 {[%clk 0:03:01.7]} 10... a6 {[%clk 0:02:48.1]} 11. a4 {[%clk 0:03:01.1]}
11... Nbd7 {[%clk 0:02:46.7]} 12. Nc4 {[%clk 0:02:59.4]} 12... Nb6 {[%clk
0:02:46.9]} 13. Na3 {[%clk 0:02:59.3]} 13... Bd7 {[%clk 0:02:44.2]} 14. Bf4
{[%clk 0:02:55.6]} 14... Nc8 {[%clk 0:02:33.3]} 15. Nc4 {[%clk 0:02:40]} 15...
Bf8 {[%clk 0:02:16.4]} 16. e4 {[%clk 0:02:34.7]} 16... Rb8 {[%clk 0:02:12.7]}
17. a5 {[%clk 0:02:27.4]} 17... Bb5 {[%clk 0:02:10.1]} 18. b3 {[%clk 0:02:18.7]}
18... Bg7 {[%clk 0:01:56.4]} 19. Qc2 {[%clk 0:02:09.1]} 19... Bxc4 {[%clk
0:01:39]} 20. bxc4 {[%clk 0:02:08.6]} 20... Nd7 {[%clk 0:01:39.7]} 21. Bd2
{[%clk 0:01:47]} 21... Qf6 {[%clk 0:01:31.4]} 22. Rab1 {[%clk 0:01:34.1]} 22...
Ne5 {[%clk 0:01:29.2]} 23. Na4 {[%clk 0:01:22.9]} 23... Nf3+ {[%clk 0:01:28]}
24. Kh1 {[%clk 0:01:19.5]} 24... Nxd2 {[%clk 0:01:22.8]} 25. Qxd2 {[%clk
0:01:19.1]} 25... Qd4 {[%clk 0:01:20.2]} 26. Qc2 {[%clk 0:01:18.8]} 26... Bf6
{[%clk 0:00:53.8]} 27. f4 {[%clk 0:01:15.6]} 27... Bd8 {[%clk 0:00:52.5]} 28. e5
{[%clk 0:01:10.1]} 28... Bxa5 {[%clk 0:00:44.8]} 29. Rbd1 {[%clk 0:00:49.4]}
29... Qe3 {[%clk 0:00:41.7]} 30. Rd3 {[%clk 0:00:44.6]} 30... Qxd3 {[%clk
0:00:38.4]} 31. Qxd3 {[%clk 0:00:43.3]} 31... b5 {[%clk 0:00:39.3]} 32. Nb2
{[%clk 0:00:38.3]} 32... dxe5 {[%clk 0:00:35.6]} 33. d6 {[%clk 0:00:30.9]} 33...
Rd8 {[%clk 0:00:29.3]} 34. fxe5 {[%clk 0:00:30.6]} 34... Nb6 {[%clk 0:00:23.4]}
35. Bd5 {[%clk 0:00:25.5]} 35... Rd7 {[%clk 0:00:19.8]} 36. Qf3 {[%clk
0:00:22.2]} 36... Nxd5 {[%clk 0:00:18.9]} 37. Qxd5 {[%clk 0:00:21.7]} 37... Re8
{[%clk 0:00:18.7]} 38. Nd3 {[%clk 0:00:21.3]} 38... bxc4 {[%clk 0:00:15.6]} 39.
Nxc5 {[%clk 0:00:20.6]} 1-0

[Event "*** SCC Grand Prix: Titled Tuesday Blitz"]
[Site "Chess.com"]
[Date "2020.06.02"]
[Round "3"]
[White "konradrutkowski"]
[Black "timedothwasteme"]
[Result "1-0"]
[WhiteElo "2338"]
[BlackElo "2139"]
[TimeControl "180+1"]
[EndTime "10:28:53 PDT"]
[Termination "konradrutkowski won on time"]

1. e4 {[%clk 0:03:00.9]} 1... c5 {[%clk 0:02:57.9]} 2. Nf3 {[%clk 0:03:00.1]}
2... Nc6 {[%clk 0:02:57.6]} 3. Bb5 {[%clk 0:02:57.8]} 3... g6 {[%clk 0:02:56.7]}
4. O-O {[%clk 0:02:53.7]} 4... Bg7 {[%clk 0:02:56.9]} 5. Re1 {[%clk 0:02:53.8]}
5... Nf6 {[%clk 0:02:56.2]} 6. Nc3 {[%clk 0:02:49.6]} 6... O-O {[%clk
0:02:56.2]} 7. e5 {[%clk 0:02:44.3]} 7... Ng4 {[%clk 0:02:55.2]} 8. Bxc6 {[%clk
0:02:43.7]} 8... dxc6 {[%clk 0:02:55.6]} 9. d3 {[%clk 0:02:36.7]} 9... Nh6
{[%clk 0:02:36.7]} 10. h3 {[%clk 0:02:30.3]} 10... Nf5 {[%clk 0:02:30.9]} 11.
Ne4 {[%clk 0:02:23.8]} 11... b6 {[%clk 0:02:29.7]} 12. Bf4 {[%clk 0:02:21.8]}
12... Nd4 {[%clk 0:02:24.4]} 13. c3 {[%clk 0:02:18.3]} 13... Ne6 {[%clk
0:02:22.5]} 14. Bh2 {[%clk 0:02:17.1]} 14... Ba6 {[%clk 0:02:22.2]} 15. d4
{[%clk 0:02:11.4]} 15... cxd4 {[%clk 0:02:21.1]} 16. cxd4 {[%clk 0:02:08.4]}
16... Qd7 {[%clk 0:02:21.2]} 17. Rc1 {[%clk 0:02:01.1]} 17... Rfd8 {[%clk
0:02:16.8]} 18. Qa4 {[%clk 0:02:00]} 18... Bb5 {[%clk 0:02:14.8]} 19. Qa3 {[%clk
0:01:52.5]} 19... Re8 {[%clk 0:01:42.4]} 20. Rcd1 {[%clk 0:01:48]} 20... h6
{[%clk 0:01:36]} 21. b3 {[%clk 0:01:42.8]} 21... a5 {[%clk 0:01:35.4]} 22. Qc1
{[%clk 0:01:40.7]} 22... Nc7 {[%clk 0:01:34.3]} 23. Nc3 {[%clk 0:01:34.1]} 23...
Nd5 {[%clk 0:01:32.2]} 24. Nxb5 {[%clk 0:01:28.2]} 24... cxb5 {[%clk 0:01:33.1]}
25. Qd2 {[%clk 0:01:22.9]} 25... b4 {[%clk 0:01:31.8]} 26. Rc1 {[%clk
0:01:21.5]} 26... Rac8 {[%clk 0:01:30.6]} 27. e6 {[%clk 0:01:12.9]} 27... fxe6
{[%clk 0:01:27.7]} 28. Be5 {[%clk 0:01:07.6]} 28... Nf6 {[%clk 0:01:10.7]} 29.
Qd3 {[%clk 0:01:02.5]} 29... g5 {[%clk 0:00:53.4]} 30. Bh2 {[%clk 0:00:52.4]}
30... Rxc1 {[%clk 0:00:42.7]} 31. Rxc1 {[%clk 0:00:51.5]} 31... Rc8 {[%clk
0:00:43.3]} 32. Re1 {[%clk 0:00:46.6]} 32... Rc3 {[%clk 0:00:30.9]} 33. Qg6
{[%clk 0:00:45.1]} 33... Rxf3 {[%clk 0:00:19.2]} 34. gxf3 {[%clk 0:00:44.6]}
34... Qxd4 {[%clk 0:00:19.7]} 35. Rxe6 {[%clk 0:00:35.5]} 35... Qd7 {[%clk
0:00:07.3]} 36. Rxb6 {[%clk 0:00:30.7]} 36... Kh8 {[%clk 0:00:07.3]} 37. Rb8+
{[%clk 0:00:28.7]} 37... Ng8 {[%clk 0:00:07.8]} 38. Be5 {[%clk 0:00:19.4]} 1-0

[Event "*** SCC Grand Prix: Titled Tuesday Blitz"]
[Site "Chess.com"]
[Date "2020.06.02"]
[Round "3"]
[White "LyonBeast"]
[Black "kleinebeer98"]
[Result "1-0"]
[WhiteElo "2940"]
[BlackElo "2670"]
[TimeControl "180+1"]
[EndTime "10:28:55 PDT"]
[Termination "LyonBeast won by resignation"]

1. c4 {[%clk 0:02:59.3]} 1... e5 {[%clk 0:02:58.5]} 2. g3 {[%clk 0:02:57.4]}
2... Nf6 {[%clk 0:02:57.7]} 3. Bg2 {[%clk 0:02:57.1]} 3... Nc6 {[%clk
0:02:56.2]} 4. Nc3 {[%clk 0:02:55]} 4... Bc5 {[%clk 0:02:56.4]} 5. e3 {[%clk
0:02:54.4]} 5... O-O {[%clk 0:02:54.7]} 6. a3 {[%clk 0:02:52.4]} 6... a6 {[%clk
0:02:53.3]} 7. Nge2 {[%clk 0:02:50.2]} 7... Re8 {[%clk 0:02:52.9]} 8. b4 {[%clk
0:02:50.1]} 8... Ba7 {[%clk 0:02:52.1]} 9. Bb2 {[%clk 0:02:50.5]} 9... d6 {[%clk
0:02:50.9]} 10. O-O {[%clk 0:02:50.3]} 10... Bg4 {[%clk 0:02:48.2]} 11. h3
{[%clk 0:02:50.2]} 11... Be6 {[%clk 0:02:48.3]} 12. Nd5 {[%clk 0:02:46.4]} 12...
Bxd5 {[%clk 0:02:41.3]} 13. cxd5 {[%clk 0:02:47.3]} 13... Ne7 {[%clk 0:02:42.2]}
14. Qb3 {[%clk 0:02:46.7]} 14... Qd7 {[%clk 0:02:12.4]} 15. Kh2 {[%clk
0:02:35.3]} 15... h5 {[%clk 0:02:00.1]} 16. f4 {[%clk 0:02:29.1]} 16... Nf5
{[%clk 0:01:52.4]} 17. Qc2 {[%clk 0:02:18.5]} 17... Nh6 {[%clk 0:01:23.1]} 18.
Rac1 {[%clk 0:02:14.1]} 18... Rac8 {[%clk 0:01:21.4]} 19. Nc3 {[%clk 0:01:54.8]}
19... h4 {[%clk 0:01:15.7]} 20. Ne2 {[%clk 0:01:44.2]} 20... exf4 {[%clk
0:01:00.3]} 21. Rxf4 {[%clk 0:01:32.3]} 21... hxg3+ {[%clk 0:00:53.4]} 22. Nxg3
{[%clk 0:01:33.2]} 22... Nh7 {[%clk 0:00:44.3]} 23. Rg1 {[%clk 0:01:30.8]} 23...
Ng5 {[%clk 0:00:42.4]} 24. Nh5 {[%clk 0:01:26.4]} 24... Re5 {[%clk 0:00:38.8]}
25. Bxe5 {[%clk 0:01:19.7]} 25... dxe5 {[%clk 0:00:39.7]} 26. Rff1 {[%clk
0:01:01.3]} 26... e4 {[%clk 0:00:27]} 27. Qc3 {[%clk 0:00:57.6]} 27... f6 {[%clk
0:00:23.7]} 28. Rxf6 {[%clk 0:00:56.6]} 28... c6 {[%clk 0:00:17.1]} 29. Rxh6
{[%clk 0:00:54.7]} 29... Bb8+ {[%clk 0:00:17.3]} 30. d6 {[%clk 0:00:53.8]} 30...
Bxd6+ {[%clk 0:00:17]} 31. Rxd6 {[%clk 0:00:50.6]} 31... Qxd6+ {[%clk
0:00:17.9]} 32. Kh1 {[%clk 0:00:51]} 32... Qh6 {[%clk 0:00:17.3]} 33. Nf4 {[%clk
0:00:44.3]} 33... Rf8 {[%clk 0:00:17.6]} 34. Qe5 {[%clk 0:00:41.5]} 34... Qh4
{[%clk 0:00:12.7]} 35. Rf1 {[%clk 0:00:37.2]} 35... Qg3 {[%clk 0:00:09.7]} 36.
Qe7 {[%clk 0:00:31.7]} 36... Nf3 {[%clk 0:00:08.2]} 37. Bxf3 {[%clk 0:00:26.6]}
37... Rxf4 {[%clk 0:00:08.4]} 38. Qe6+ {[%clk 0:00:24.4]} 38... Kh8 {[%clk
0:00:05.2]} 39. exf4 {[%clk 0:00:23.3]} 39... exf3 {[%clk 0:00:04.5]} 40. Qg4
{[%clk 0:00:22.6]} 1-0

[Event "*** SCC Grand Prix: Titled Tuesday Blitz"]
[Site "Chess.com"]
[Date "2020.06.02"]
[Round "3"]
[White "ChessWarrior7197"]
[Black "Slovak_fighter2000"]
[Result "1-0"]
[WhiteElo "2908"]
[BlackElo "2450"]
[TimeControl "180+1"]
[EndTime "10:28:55 PDT"]
[Termination "ChessWarrior7197 won by checkmate"]

1. e4 {[%clk 0:03:00.9]} 1... e6 {[%clk 0:02:59.8]} 2. d4 {[%clk 0:03:00.6]}
2... d5 {[%clk 0:02:59]} 3. Nc3 {[%clk 0:03:01.5]} 3... Nf6 {[%clk 0:02:58.6]}
4. e5 {[%clk 0:03:01]} 4... Nfd7 {[%clk 0:02:58.6]} 5. Nce2 {[%clk 0:03:00.3]}
5... c5 {[%clk 0:02:58.7]} 6. c3 {[%clk 0:03:00.3]} 6... Nc6 {[%clk 0:02:59.1]}
7. f4 {[%clk 0:02:59.1]} 7... Be7 {[%clk 0:02:59.1]} 8. Nf3 {[%clk 0:02:58.9]}
8... O-O {[%clk 0:02:58.9]} 9. h4 {[%clk 0:02:58.5]} 9... b5 {[%clk 0:02:57.3]}
10. h5 {[%clk 0:02:57.8]} 10... f6 {[%clk 0:02:47.3]} 11. g3 {[%clk 0:02:52.9]}
11... fxe5 {[%clk 0:02:45.6]} 12. dxe5 {[%clk 0:02:53.8]} 12... b4 {[%clk
0:02:32.9]} 13. Bh3 {[%clk 0:02:52.5]} 13... Nb6 {[%clk 0:02:31.4]} 14. O-O
{[%clk 0:02:47.5]} 14... a5 {[%clk 0:02:22.9]} 15. Kh2 {[%clk 0:02:28.8]} 15...
Qe8 {[%clk 0:02:22.6]} 16. Bg4 {[%clk 0:02:28.2]} 16... a4 {[%clk 0:02:15.7]}
17. cxb4 {[%clk 0:02:25.8]} 17... Nxb4 {[%clk 0:02:12.6]} 18. Rf2 {[%clk
0:02:20.9]} 18... Bd8 {[%clk 0:01:59.5]} 19. Be3 {[%clk 0:02:17.4]} 19... Be7
{[%clk 0:01:46.8]} 20. Bd2 {[%clk 0:02:08.6]} 20... Nd3 {[%clk 0:01:41.1]} 21.
Rf1 {[%clk 0:01:55.2]} 21... Nxb2 {[%clk 0:01:40]} 22. Qc2 {[%clk 0:01:54.7]}
22... a3 {[%clk 0:01:36.5]} 23. Ng5 {[%clk 0:01:48.4]} 23... Bxg5 {[%clk
0:01:32.9]} 24. fxg5 {[%clk 0:01:49.3]} 24... Rxf1 {[%clk 0:01:21.2]} 25. Rxf1
{[%clk 0:01:50.2]} 25... N6c4 {[%clk 0:01:18]} 26. Bf4 {[%clk 0:00:56.1]} 26...
Qa4 {[%clk 0:01:10.5]} 27. Qc3 {[%clk 0:00:52.3]} 27... Bd7 {[%clk 0:00:59.6]}
28. g6 {[%clk 0:00:49.6]} 28... h6 {[%clk 0:00:41.2]} 29. Bxh6 {[%clk
0:00:47.9]} 29... gxh6 {[%clk 0:00:35.9]} 30. Rf7 {[%clk 0:00:37.8]} 30... d4
{[%clk 0:00:33.2]} 31. Qf3 {[%clk 0:00:33.3]} 31... Nxe5 {[%clk 0:00:29.6]} 32.
Qf4 {[%clk 0:00:22.3]} 32... Nxg4+ {[%clk 0:00:29.6]} 33. Qxg4 {[%clk
0:00:22.7]} 33... Rf8 {[%clk 0:00:19.1]} 34. Qf4 {[%clk 0:00:21]} 34... Qa8
{[%clk 0:00:15.2]} 35. Qf6 {[%clk 0:00:20.5]} 35... Rxf7 {[%clk 0:00:03.2]} 36.
Qxf7+ {[%clk 0:00:21.4]} 36... Kh8 {[%clk 0:00:03.6]} 37. g7+ {[%clk 0:00:21.9]}
37... Kh7 {[%clk 0:00:03]} 38. g8=Q# {[%clk 0:00:22.8]} 1-0

[Event "*** SCC Grand Prix: Titled Tuesday Blitz"]
[Site "Chess.com"]
[Date "2020.06.02"]
[Round "3"]
[White "Shtembuliak"]
[Black "stanyga"]
[Result "1-0"]
[WhiteElo "2883"]
[BlackElo "2643"]
[TimeControl "180+1"]
[EndTime "10:28:56 PDT"]
[Termination "Shtembuliak won by resignation"]

1. c4 {[%clk 0:03:00.9]} 1... e5 {[%clk 0:02:58.6]} 2. Nc3 {[%clk 0:03:00.6]}
2... Nf6 {[%clk 0:02:58.1]} 3. Nf3 {[%clk 0:03:00.7]} 3... Nc6 {[%clk
0:02:57.2]} 4. e3 {[%clk 0:03:01]} 4... Bb4 {[%clk 0:02:56.6]} 5. Qc2 {[%clk
0:03:01.2]} 5... Bxc3 {[%clk 0:02:55.3]} 6. bxc3 {[%clk 0:03:01.7]} 6... e4
{[%clk 0:02:53.9]} 7. Ng5 {[%clk 0:03:01.4]} 7... Qe7 {[%clk 0:02:52.8]} 8. f3
{[%clk 0:03:01.8]} 8... exf3 {[%clk 0:02:51.4]} 9. Nxf3 {[%clk 0:03:02.7]} 9...
d6 {[%clk 0:02:49.8]} 10. Be2 {[%clk 0:03:02.7]} 10... Ne5 {[%clk 0:02:36.6]}
11. Nd4 {[%clk 0:03:02]} 11... Be6 {[%clk 0:02:27.8]} 12. O-O {[%clk 0:02:42.4]}
12... O-O {[%clk 0:02:23]} 13. Nf5 {[%clk 0:02:34.7]} 13... Qd7 {[%clk
0:02:12.4]} 14. e4 {[%clk 0:02:05.2]} 14... Bxc4 {[%clk 0:02:01.3]} 15. Bxc4
{[%clk 0:01:52.5]} 15... Nxc4 {[%clk 0:02:00]} 16. d3 {[%clk 0:01:11.4]} 16...
Ne5 {[%clk 0:01:53.7]} 17. Bg5 {[%clk 0:01:11.2]} 17... Nh5 {[%clk 0:01:22.8]}
18. d4 {[%clk 0:01:08.5]} 18... Nc6 {[%clk 0:01:21.5]} 19. Qe2 {[%clk
0:01:06.8]} 19... f6 {[%clk 0:01:10.8]} 20. Bh6 {[%clk 0:00:51.3]} 20... Qe8
{[%clk 0:00:59]} 21. g4 {[%clk 0:00:37.3]} 21... gxh6 {[%clk 0:00:39.9]} 22.
gxh5 {[%clk 0:00:37.5]} 22... Kh8 {[%clk 0:00:39.9]} 23. Kh1 {[%clk 0:00:36.6]}
23... d5 {[%clk 0:00:39]} 24. Rf4 {[%clk 0:00:35.8]} 24... Qf7 {[%clk 0:00:33]}
25. Nxh6 {[%clk 0:00:33.8]} 25... Qg7 {[%clk 0:00:31.3]} 26. Nf5 {[%clk
0:00:33.8]} 26... Qg5 {[%clk 0:00:31.3]} 27. Rg4 {[%clk 0:00:32.2]} 27... Qxh5
{[%clk 0:00:22.2]} 28. Rg8+ {[%clk 0:00:32.1]} 28... Rxg8 {[%clk 0:00:22.6]} 29.
Qxh5 {[%clk 0:00:32.9]} 29... dxe4 {[%clk 0:00:22.1]} 30. Qf7 {[%clk 0:00:29.4]}
30... Raf8 {[%clk 0:00:19.8]} 31. Qxc7 {[%clk 0:00:27.6]} 31... Rg5 {[%clk
0:00:19.2]} 32. Qf4 {[%clk 0:00:25.1]} 32... Re8 {[%clk 0:00:18]} 33. Rg1 {[%clk
0:00:22.2]} 33... Rxf5 {[%clk 0:00:01.1]} 34. Qxf5 {[%clk 0:00:21.6]} 1-0

[Event "*** SCC Grand Prix: Titled Tuesday Blitz"]
[Site "Chess.com"]
[Date "2020.06.02"]
[Round "3"]
[White "Philosopherrr"]
[Black "Twitch_ElhamBlitz05"]
[Result "1-0"]
[WhiteElo "2511"]
[BlackElo "2673"]
[TimeControl "180+1"]
[EndTime "10:28:56 PDT"]
[Termination "Philosopherrr won by resignation"]

1. e4 {[%clk 0:03:00.9]} 1... c6 {[%clk 0:02:59.6]} 2. d4 {[%clk 0:02:46]} 2...
d5 {[%clk 0:03:00.5]} 3. exd5 {[%clk 0:02:35.7]} 3... cxd5 {[%clk 0:03:00.6]} 4.
c4 {[%clk 0:02:36.6]} 4... Nf6 {[%clk 0:03:01.1]} 5. Nc3 {[%clk 0:02:34.3]} 5...
g6 {[%clk 0:03:00.9]} 6. Bg5 {[%clk 0:02:32]} 6... dxc4 {[%clk 0:02:59.9]} 7.
Bxc4 {[%clk 0:02:30.7]} 7... Bg7 {[%clk 0:03:00.1]} 8. Nf3 {[%clk 0:02:29.5]}
8... O-O {[%clk 0:03:00.2]} 9. h3 {[%clk 0:02:29.5]} 9... Nbd7 {[%clk
0:02:59.5]} 10. Bb3 {[%clk 0:02:27.2]} 10... b6 {[%clk 0:02:59.5]} 11. Qe2
{[%clk 0:02:25.2]} 11... Bb7 {[%clk 0:02:59.4]} 12. O-O {[%clk 0:02:24.4]} 12...
Rc8 {[%clk 0:02:52.6]} 13. Rfe1 {[%clk 0:02:23.9]} 13... e6 {[%clk 0:02:51.4]}
14. Rad1 {[%clk 0:02:22.6]} 14... a6 {[%clk 0:02:37.3]} 15. Ne5 {[%clk
0:02:15.5]} 15... Qe8 {[%clk 0:02:10.6]} 16. Nc4 {[%clk 0:01:56.6]} 16... Qe7
{[%clk 0:01:06]} 17. d5 {[%clk 0:01:54.2]} 17... e5 {[%clk 0:00:50.9]} 18. d6
{[%clk 0:01:34.4]} 18... Qe8 {[%clk 0:00:33.8]} 19. Nxe5 {[%clk 0:01:30.1]}
19... Nxe5 {[%clk 0:00:25.4]} 20. Qxe5 {[%clk 0:01:28.8]} 20... Qc6 {[%clk
0:00:26]} 21. Nd5 {[%clk 0:00:55.5]} 21... Rfe8 {[%clk 0:00:14]} 22. Nxf6+
{[%clk 0:00:38.4]} 22... Bxf6 {[%clk 0:00:12.1]} 23. Qxe8+ {[%clk 0:00:28.7]}
23... Rxe8 {[%clk 0:00:11.5]} 24. Rxe8+ {[%clk 0:00:29]} 24... Qxe8 {[%clk
0:00:11.9]} 25. d7 {[%clk 0:00:29.5]} 25... Qe4 {[%clk 0:00:07.2]} 26. f3 {[%clk
0:00:29.3]} 26... Bxg5 {[%clk 0:00:04.1]} 27. fxe4 {[%clk 0:00:25.6]} 27... Bd8
{[%clk 0:00:04.7]} 28. Bd5 {[%clk 0:00:24.6]} 28... Bxd5 {[%clk 0:00:03.8]} 29.
Rxd5 {[%clk 0:00:24.2]} 29... Kf8 {[%clk 0:00:04.5]} 30. Kf1 {[%clk 0:00:22.8]}
30... Ke7 {[%clk 0:00:04.4]} 31. Ke2 {[%clk 0:00:23.2]} 31... b5 {[%clk
0:00:03.8]} 32. b3 {[%clk 0:00:21.3]} 32... Bc7 {[%clk 0:00:04.3]} 33. a4 {[%clk
0:00:21.3]} 33... Kd8 {[%clk 0:00:04.8]} 34. axb5 {[%clk 0:00:21.3]} 34... axb5
{[%clk 0:00:05.7]} 35. g4 {[%clk 0:00:20.2]} 35... b4 {[%clk 0:00:06]} 36. Kd3
{[%clk 0:00:20.5]} 36... Bg3 {[%clk 0:00:04.3]} 37. Kc4 {[%clk 0:00:20.4]} 37...
Be1 {[%clk 0:00:04.6]} 38. Kc5 {[%clk 0:00:20.5]} 38... Bc3 {[%clk 0:00:01.8]}
39. Kc6 {[%clk 0:00:20.4]} 39... h6 {[%clk 0:00:02.3]} 40. Rb5 {[%clk
0:00:20.7]} 1-0

[Event "*** SCC Grand Prix: Titled Tuesday Blitz"]
[Site "Chess.com"]
[Date "2020.06.02"]
[Round "3"]
[White "Loiacono_Antonio"]
[Black "EvgenyRomanov"]
[Result "0-1"]
[WhiteElo "2413"]
[BlackElo "2653"]
[TimeControl "180+1"]
[EndTime "10:28:56 PDT"]
[Termination "EvgenyRomanov won by resignation"]

1. e4 {[%clk 0:03:00.9]} 1... e6 {[%clk 0:02:59]} 2. d4 {[%clk 0:03:00.5]} 2...
d5 {[%clk 0:02:59.9]} 3. Nc3 {[%clk 0:03:01.2]} 3... Bb4 {[%clk 0:02:59]} 4. Ne2
{[%clk 0:03:01]} 4... dxe4 {[%clk 0:02:56.6]} 5. a3 {[%clk 0:03:00.9]} 5... Be7
{[%clk 0:02:55]} 6. Nxe4 {[%clk 0:03:00.6]} 6... Nc6 {[%clk 0:02:55.2]} 7. Be3
{[%clk 0:02:59.4]} 7... Nf6 {[%clk 0:02:54.1]} 8. Nxf6+ {[%clk 0:02:50.4]} 8...
Bxf6 {[%clk 0:02:53.8]} 9. c3 {[%clk 0:02:45.4]} 9... O-O {[%clk 0:02:48.6]} 10.
Ng3 {[%clk 0:02:41.8]} 10... e5 {[%clk 0:02:48.6]} 11. d5 {[%clk 0:02:41.1]}
11... Ne7 {[%clk 0:02:48.4]} 12. c4 {[%clk 0:02:40.8]} 12... Ng6 {[%clk
0:02:29]} 13. Bd3 {[%clk 0:02:25.6]} 13... e4 {[%clk 0:02:18.5]} 14. Nxe4 {[%clk
0:02:22]} 14... Bxb2 {[%clk 0:02:18.3]} 15. Ra2 {[%clk 0:02:18.2]} 15... Be5
{[%clk 0:02:17.3]} 16. O-O {[%clk 0:02:08]} 16... Bf4 {[%clk 0:01:45.6]} 17. Re2
{[%clk 0:01:45.5]} 17... Bg4 {[%clk 0:01:31]} 18. f3 {[%clk 0:01:41]} 18... Bd7
{[%clk 0:01:31.4]} 19. Bf2 {[%clk 0:01:36.2]} 19... b6 {[%clk 0:01:26.4]} 20.
Qc2 {[%clk 0:01:34.7]} 20... c6 {[%clk 0:01:17.2]} 21. dxc6 {[%clk 0:01:30.6]}
21... Bxc6 {[%clk 0:01:16.6]} 22. c5 {[%clk 0:01:30.9]} 22... Ne5 {[%clk
0:01:05.6]} 23. Ba6 {[%clk 0:01:18.8]} 23... b5 {[%clk 0:00:59.2]} 24. Nd6
{[%clk 0:01:12.3]} 24... Qa5 {[%clk 0:00:54.9]} 25. Bb7 {[%clk 0:01:06.7]} 25...
Bxb7 {[%clk 0:00:46.4]} 26. Nxb7 {[%clk 0:01:07.6]} 26... Qc7 {[%clk 0:00:46.3]}
27. Nd6 {[%clk 0:01:04.8]} 27... a6 {[%clk 0:00:39]} 28. Re4 {[%clk 0:00:53.2]}
28... Nxf3+ {[%clk 0:00:34.7]} 29. gxf3 {[%clk 0:00:49.9]} 29... Bxd6 {[%clk
0:00:35.6]} 30. Rh4 {[%clk 0:00:44.2]} 30... g6 {[%clk 0:00:32.3]} 31. Qc1
{[%clk 0:00:33.9]} 31... Be5 {[%clk 0:00:32]} 32. Qh6 {[%clk 0:00:30.4]} 32...
f5 {[%clk 0:00:32.1]} 33. Re1 {[%clk 0:00:21.8]} 33... Rfe8 {[%clk 0:00:31.5]}
34. Kf1 {[%clk 0:00:18.3]} 34... Bf6 {[%clk 0:00:30.6]} 35. Rxe8+ {[%clk
0:00:16.1]} 35... Rxe8 {[%clk 0:00:31.5]} 36. Rh3 {[%clk 0:00:16.6]} 36... Qd7
{[%clk 0:00:30.5]} 37. Kg2 {[%clk 0:00:15.9]} 37... Re2 {[%clk 0:00:29.2]} 38.
Rg3 {[%clk 0:00:14.2]} 38... Bd4 {[%clk 0:00:26.6]} 0-1